fUST/lending_fUST_20240820
["ID","MTS","AMOUNT","RATE_DAILY","PERIOD"]
[335328059,1724116238398,-188.56371582,7.954e-05,2]
[335328060,1724116238408,-183.26729203,7.954e-05,2]
[335328061,1724116238417,-305.22762449,7.954e-05,2]
[335328062,1724116238428,-166.37875607,7.954e-05,2]
[335328064,1724116238437,-154.86906917,7.954e-05,2]
[335328066,1724116238447,-154.76012181,8.019e-05,2]
[335328068,1724116238457,-533.77403993,8.019e-05,2]
[335328070,1724116238466,-600.87674953,8.019e-05,2]
[335328072,1724116238475,-155.99688448,8.019e-05,2]
[335328074,1724116238485,-420.0,8.414e-05,2]
[335328076,1724116238495,-250.0,8.418e-05,2]
[335328078,1724116238504,-250.0,8.441e-05,2]
[335328080,1724116238513,-250.0,8.465e-05,2]
[335328082,1724116238523,-250.0,8.488e-05,2]
[335328084,1724116238533,-250.0,8.511e-05,2]
[335328086,1724116238543,-8844.39705201,8.521e-05,2]
[335328088,1724116238552,-850.86713135,8.521e-05,2]
[335328090,1724116238562,-154.98301103,8.532e-05,2]
[335328093,1724116238572,-250.0,8.534e-05,2]
[335328095,1724116238582,-250.0,8.557e-05,2]
[335328097,1724116238591,-250.0,8.58e-05,2]
[335328099,1724116238600,-250.0,8.603e-05,2]
[335328101,1724116238610,-250.0,8.626e-05,2]
[335328103,1724116238619,-250.0,8.649e-05,2]
[335328105,1724116238629,-250.0,8.672e-05,2]
[335328107,1724116238639,-250.0,8.696e-05,2]
[335328109,1724116238648,-250.0,8.719e-05,2]
[335328111,1724116238657,-250.0,8.742e-05,2]
[335328113,1724116238667,-1766.47659697,8.761e-05,2]
[335328115,1724116238680,-250.0,8.765e-05,2]
[335328117,1724116238690,-250.0,8.788e-05,2]
[335328135,1724116238699,-250.0,8.811e-05,2]
[335328138,1724116238860,-250.0,8.834e-05,2]
[335328140,1724116238870,-250.0,8.857e-05,2]
[335328142,1724116238879,-154.91162192,8.861e-05,2]
[335328144,1724116238889,-810.48415788,8.861e-05,2]
[335328146,1724116238899,-587.0,9.255e-05,2]
[335328148,1724116238908,-10030.08964508,0.0001,2]
[335328150,1724116238918,-823.0,0.0001018,2]
[335328152,1724116238929,-1500.0,0.0001026,2]
[335328154,1724116238939,-294.1,0.00010959,2]
[335328156,1724116238948,-1152.0,0.00011198,2]
[335328158,1724116238959,-55471.09586993,0.00011712,2]
[335328160,1724116238969,-10756.61785606,0.00011742,2]
[335328162,1724116238978,-42411.5996467,0.00011842,2]
[335328164,1724116238987,-200.0,0.00011873,2]
[335328167,1724116238998,-81778.0319031,0.000119,2]
[335328169,1724116239007,-20794.87454007,0.00011999,2]
[335328171,1724116239016,-81778.0319031,0.0001211,2]
[335328173,1724116239026,-7013.41255393,0.0001212,2]
[335328175,1724116239037,-200.0,0.00012173,2]
[335328177,1724116239046,-10756.61785603,0.00012204,2]
[335328179,1724116239055,-1613.0,0.00012318,2]
[335328181,1724116239064,-154.76012181,0.00012356,2]
[335328183,1724116239074,-81778.0319031,0.00012463,2]
[335328185,1724116239083,-1613.45959463,0.00012551,2]
[335328187,1724116239092,-1613.45959463,0.00012629,2]
[335328189,1724116239101,-174.83511409,0.00012629,2]
[335328191,1724116239111,-174.83511409,0.00012629,2]
[335328193,1724116239121,-3092.64278727,0.00012629,2]
[335328195,1724116239130,-10756.61785603,0.00012665,2]
[335328197,1724116239139,-898.70545475,0.00012689,2]
[335328199,1724116239148,-7458.5472909,0.000129,2]
[335328200,1724116239157,-7458.54729085,0.000129,2]
[335328201,1724116239167,-342.65845262,0.00012934,2]
[335328202,1724116239176,-342.65845262,0.00012934,2]
[335328203,1724116239186,-157.09608348,0.00012971,2]
[335328204,1724116239196,-210.23989812,0.00012971,2]
[335328205,1724116239205,-157.09608348,0.00012971,2]
[335328206,1724116239214,-521.839242,0.00012975,2]
[335328207,1724116239223,-521.839242,0.00012975,2]
[335328208,1724116239233,-2282.40908483,0.00012985,3]
[335328209,1724116239242,-1646.80421124,0.00012989,2]
[335328210,1724116239253,-154.87928064,0.00012989,2]
[335328211,1724116239262,-688.676981,0.00012991,2]
[335328212,1724116239272,-688.676981,0.00012991,2]
[335328213,1724116239282,-493.30764145,0.00012991,2]
[335328214,1724116239292,-493.30764145,0.00012991,2]
[335328215,1724116239301,-933.80144992,0.00012999,2]
[335328216,1724116239311,-933.80144992,0.00012999,2]
[335328218,1724116239320,-2166.25640825,0.00012999,2]
[335328219,1724116239331,-154.76012181,0.00013025,2]
[335328221,1724116239344,-309.48937035,0.00013051,2]
[335328223,1724116239354,-2128.04084944,0.00013051,2]
[335328225,1724116239364,-154.76012181,0.00013051,2]
[335328227,1724116239373,-601.88445386,0.00013051,2]
[335328229,1724116239385,-10756.61785603,0.00013127,2]
[335328231,1724116239395,-400.0,0.00013242,2]
[335328234,1724116239404,-81778.0319031,0.00013307,2]
[335328235,1724116239414,-155.23257901,0.00013333,2]
[335328237,1724116239423,-154.76012181,0.00013333,2]
[335328239,1724116239432,-422.31766157,0.00013477,2]
[335328241,1724116239442,-521.29251267,0.00013477,2]
[335328243,1724116239451,-303.88315392,0.00013496,2]
[335328245,1724116239460,-165.38951444,0.00013496,2]
[335328248,1724116239470,-544.00882293,0.00013496,2]
[335328250,1724116239480,-728.79489661,0.00013496,2]
[335328252,1724116239489,-413.66267349,0.00013496,2]
[335328253,1724116239498,-190.07446844,0.00013497,2]
[335328254,1724116239508,-9659.27545044,0.00013497,2]
[335328255,1724116239518,-569.55611374,0.00013497,2]
[335328256,1724116239527,-320.27103328,0.00013497,2]
[335328257,1724116239538,-862.44048895,0.00013497,2]
[335328258,1724116239547,-160.44466579,0.00013497,2]
[335328259,1724116239557,-301.53815771,0.00013497,2]
[335328260,1724116239566,-186.54146635,0.00013497,2]
[335328261,1724116239576,-240.13899859,0.00013497,2]
[335328262,1724116239586,-400.0,0.00013542,2]
[335328263,1724116239595,-2258.0,0.0001355,2]
[335328264,1724116239606,-10756.61785603,0.00013588,2]
[335328265,1724116239615,-2142.81108391,0.00013596,2]
[335328266,1724116239625,-180.79435253,0.00013596,2]
[335328267,1724116239634,-154.76012181,0.00013596,2]
[335328268,1724116239644,-288.27624498,0.00013596,2]
[335328269,1724116239653,-196.81150092,0.00013596,2]
[335328270,1724116239662,-154.94299491,0.00013596,2]
[335328271,1724116239673,-154.76012181,0.00013597,2]
[335328272,1724116239685,-223.52112672,0.00013597,2]
[335328273,1724116239694,-154.76012181,0.00013597,2]
[335328274,1724116239704,-665.46668942,0.00013599,2]
[335328275,1724116239714,-200.0,0.00013673,2]
[335328276,1724116239724,-81778.0319031,0.00013678,2]
[335328277,1724116239733,-158.10419074,0.00013688,2]
[335328278,1724116239743,-495.14476956,0.00013688,2]
[335328279,1724116239753,-521.839242,0.00013688,2]
[335328280,1724116239763,-521.839242,0.00013688,2]
[335328281,1724116239773,-521.839242,0.00013688,2]
[335328282,1724116239785,-521.839242,0.00013688,2]
[335328283,1724116239794,-521.839242,0.00013689,2]
[335328284,1724116239804,-521.839242,0.00013689,2]
[335328285,1724116239814,-217.52193552,0.00013698,2]
[335328286,1724116239824,-572.84756531,0.00013698,2]
[335328287,1724116239834,-500.0,0.00013698,2]
[335328288,1724116239844,-500.0,0.00013698,2]
[335328289,1724116239854,-280.71847254,0.00013698,2]
[335328290,1724116239864,-500.0,0.00013698,2]
[335328291,1724116239873,-500.0,0.00013698,2]
[335328292,1724116239884,-500.0,0.00013698,2]
[335328293,1724116239894,-500.0,0.00013698,2]
[335328294,1724116239904,-500.0,0.00013698,2]
[335328295,1724116239914,-191.73648823,0.00013698,2]
[335328296,1724116239924,-500.0,0.00013698,2]
[335328297,1724116239934,-500.0,0.00013698,2]
[335328298,1724116239943,-500.0,0.00013698,2]
[335328299,1724116239954,-500.0,0.00013698,2]
[335328300,1724116239963,-500.0,0.00013698,2]
[335328301,1724116239974,-416.68046565,0.00013698,2]
[335328302,1724116239984,-191.67632595,0.00013698,2]
[335328303,1724116239994,-500.0,0.00013698,2]
[335328304,1724116240005,-500.0,0.00013698,2]
[335328305,1724116240016,-500.0,0.00013698,2]
[335328306,1724116240027,-265.5965669,0.00013698,2]
[335328309,1724116240039,-500.0,0.00013698,2]
[335328310,1724116240048,-433.03559049,0.00013698,2]
[335328313,1724116240058,-500.0,0.00013698,2]
[335328316,1724116240067,-578.66715876,0.00013698,2]
[335328318,1724116240078,-356.22180046,0.00013698,2]
[335328319,1724116240087,-389.3065637,0.00013698,2]
[335328321,1724116240097,-500.0,0.00013698,2]
[335328323,1724116240106,-300.0,0.00013698,2]
[335328325,1724116240116,-500.0,0.00013698,2]
[335328327,1724116240126,-500.0,0.00013698,2]
[335328330,1724116240136,-500.0,0.00013698,2]
[335328332,1724116240147,-500.0,0.00013698,2]
[335328334,1724116240156,-500.0,0.00013698,2]
[335328336,1724116240166,-535.90317491,0.00013698,2]
[335328338,1724116240175,-500.0,0.00013698,2]
[335328340,1724116240185,-200.0,0.00013698,2]
[335328342,1724116240196,-500.0,0.00013698,2]
[335328344,1724116240207,-500.0,0.00013698,2]
[335328346,1724116240219,-200.0,0.00013698,2]
[335328349,1724116240231,-2727.5765146,0.00013699,2]
[335328351,1724116240241,-153.528801,0.00013699,2]
[335328353,1724116240251,-2022.585777,0.00013699,2]
[335328355,1724116240261,-151.0,0.00013699,2]
[335328356,1724116240271,-234.084086,0.00013699,2]
[335328358,1724116240282,-151.0,0.00013699,2]
[335328360,1724116240293,-151.0,0.00013699,2]
[335328361,1724116240303,-151.0,0.00013699,2]
[335328363,1724116240313,-151.0,0.00013699,2]
[335328365,1724116240324,-151.0,0.00013699,2]
[335328367,1724116240334,-151.0,0.00013699,2]
[335328368,1724116240344,-151.0,0.00013699,2]
[335328369,1724116240354,-151.0,0.00013699,2]
[335328370,1724116240363,-151.0,0.00013699,2]
[335328371,1724116240373,-151.0,0.00013699,2]
[335328372,1724116240382,-152.75799,0.00013699,2]
[335328373,1724116240391,-152.75799,0.00013699,2]
[335328374,1724116240412,-152.75799,0.00013699,2]
[335328376,1724116240423,-152.75799,0.00013699,2]
[335328378,1724116240433,-152.75799,0.00013699,2]
[335328380,1724116240443,-152.75799,0.00013699,2]
[335328382,1724116240454,-151.0,0.00013699,2]
[335328384,1724116240465,-199.17879,0.00013699,2]
[335328386,1724116240476,-163.094173,0.00013699,2]
[335328387,1724116240486,-163.094173,0.00013699,2]
[335328389,1724116240496,-163.094173,0.00013699,2]
[335328391,1724116240507,-163.094173,0.00013699,2]
[335328393,1724116240517,-163.094173,0.00013699,2]
[335328394,1724116240528,-163.094173,0.00013699,2]
[335328395,1724116240539,-163.094173,0.00013699,2]
[335328396,1724116240549,-163.094173,0.00013699,2]
[335328397,1724116240559,-151.0,0.00013699,2]
[335328398,1724116240569,-151.009261,0.00013699,2]
[335328399,1724116240579,-3000.0,0.00013699,2]
[335328400,1724116240589,-316.79434,0.00013699,2]
[335328402,1724116240599,-316.79434,0.00013699,2]
[335328403,1724116240608,-316.79434,0.00013699,2]
[335328404,1724116240618,-316.79434,0.00013699,2]
[335328405,1724116240628,-151.0,0.00013699,2]
[335328406,1724116240639,-151.0,0.00013699,2]
[335328407,1724116240649,-151.0,0.00013699,2]
[335328409,1724116240660,-267.686174,0.00013699,2]
[335328410,1724116240670,-316.79434,0.00013699,2]
[335328411,1724116240684,-316.79434,0.00013699,2]
[335328412,1724116240694,-316.79434,0.00013699,2]
[335328413,1724116240704,-316.79434,0.00013699,2]
[335328414,1724116240714,-151.0,0.00013699,2]
[335328415,1724116240725,-151.0,0.00013699,2]
[335328416,1724116240735,-151.0,0.00013699,2]
[335328417,1724116240745,-151.0,0.00013699,2]
[335328418,1724116240758,-352.366828,0.00013699,2]
[335328419,1724116240768,-352.366828,0.00013699,2]
[335328420,1724116240778,-352.366828,0.00013699,2]
[335328421,1724116240789,-279.554184,0.00013699,2]
[335328422,1724116240798,-352.366828,0.00013699,2]
[335328423,1724116240808,-279.554184,0.00013699,2]
[335328424,1724116240818,-279.554184,0.00013699,2]
[335328425,1724116240828,-279.554184,0.00013699,2]
[335328426,1724116240837,-352.366828,0.00013699,2]
[335328427,1724116240847,-352.366828,0.00013699,2]
[335328428,1724116240856,-279.554184,0.00013699,2]
[335328429,1724116240866,-352.366828,0.00013699,2]
[335328430,1724116240877,-352.366828,0.00013699,2]
[335328431,1724116240887,-279.554184,0.00013699,2]
[335328432,1724116240896,-279.554184,0.00013699,2]
[335328433,1724116240906,-279.554184,0.00013699,2]
[335328434,1724116240915,-37187.2565822,0.00013699,2]
[335328435,1724116240925,-213.125147,0.00013699,2]
[335328436,1724116240935,-213.125147,0.00013699,2]
[335328437,1724116240944,-213.125147,0.00013699,2]
[335328438,1724116240954,-213.125147,0.00013699,2]
[335328440,1724116240963,-213.125147,0.00013699,2]
[335328441,1724116240973,-213.125147,0.00013699,2]
[335328442,1724116240982,-213.125147,0.00013699,2]
[335328443,1724116240991,-213.125147,0.00013699,2]
[335328444,1724116241001,-153.230576,0.00013699,2]
[335328445,1724116241010,-153.230576,0.00013699,2]
[335328446,1724116241019,-153.230576,0.00013699,2]
[335328447,1724116241029,-153.230576,0.00013699,2]
[335328448,1724116241040,-153.230576,0.00013699,2]
[335328449,1724116241050,-153.230576,0.00013699,2]
[335328450,1724116241062,-153.230576,0.00013699,2]
[335328451,1724116241073,-153.230576,0.00013699,2]
[335328452,1724116241084,-151.0,0.00013699,2]
[335328453,1724116241094,-151.0,0.00013699,2]
[335328454,1724116241105,-151.0,0.00013699,2]
[335328455,1724116241115,-151.0,0.00013699,2]
[335328456,1724116241127,-151.0,0.00013699,2]
[335328457,1724116241138,-151.0,0.00013699,2]
[335328458,1724116241149,-151.0,0.00013699,2]
[335328459,1724116241160,-310.0,0.00013699,2]
[335328460,1724116241170,-457.120262,0.00013699,2]
[335328461,1724116241181,-249.522073,0.00013699,2]
[335328462,1724116241192,-249.522073,0.00013699,2]
[335328463,1724116241203,-249.522073,0.00013699,2]
[335328464,1724116241216,-249.522073,0.00013699,2]
[335328465,1724116241227,-249.522073,0.00013699,2]
[335328466,1724116241243,-249.522073,0.00013699,2]
[335328467,1724116241255,-151.0,0.00013699,2]
[335328468,1724116241266,-151.0,0.00013699,2]
[335328469,1724116241277,-151.0,0.00013699,2]
[335328470,1724116241287,-151.0,0.00013699,2]
[335328471,1724116241299,-151.0,0.00013699,2]
[335328472,1724116241311,-151.0,0.00013699,2]
[335328473,1724116241322,-153.235612,0.00013699,2]
[335328474,1724116241334,-153.235612,0.00013699,2]
[335328475,1724116241344,-153.235612,0.00013699,2]
[335328476,1724116241356,-151.0,0.00013699,2]
[335328477,1724116241366,-151.0,0.00013699,2]
[335328478,1724116241377,-151.0,0.00013699,2]
[335328479,1724116241388,-153.235612,0.00013699,2]
[335328480,1724116241398,-153.235612,0.00013699,2]
[335328481,1724116241409,-153.235612,0.00013699,2]
[335328482,1724116241420,-576.445183,0.00013699,2]
[335328483,1724116241432,-576.445183,0.00013699,2]
[335328484,1724116241444,-576.445183,0.00013699,2]
[335328485,1724116241455,-576.445183,0.00013699,2]
[335328486,1724116241465,-576.445183,0.00013699,2]
[335328487,1724116241477,-500.0,0.00013699,2]
[335328488,1724116241488,-500.0,0.00013699,2]
[335328489,1724116241499,-500.0,0.00013699,2]
[335328490,1724116241510,-500.0,0.00013699,2]
[335328491,1724116241521,-500.0,0.00013699,2]
[335328492,1724116241531,-500.0,0.00013699,2]
[335328493,1724116241543,-500.0,0.00013699,2]
[335328494,1724116241552,-283.65919856,0.00013699,2]
[335328495,1724116241561,-500.0,0.00013699,2]
[335328496,1724116241571,-500.0,0.00013699,2]
[335328497,1724116241581,-500.0,0.00013699,2]
[335328498,1724116241591,-500.0,0.00013699,2]
[335328499,1724116241602,-500.0,0.00013699,2]
[335328500,1724116241612,-500.0,0.00013699,2]
[335328501,1724116241623,-500.0,0.00013699,2]
[335328502,1724116241635,-500.0,0.00013699,2]
[335328503,1724116241646,-500.0,0.00013699,2]
[335328504,1724116241657,-500.0,0.00013699,2]
[335328505,1724116241670,-500.0,0.00013699,2]
[335328506,1724116241682,-500.0,0.00013699,2]
[335328507,1724116241694,-500.0,0.00013699,2]
[335328508,1724116241704,-500.0,0.00013699,2]
[335328509,1724116241715,-500.0,0.00013699,2]
[335328510,1724116241726,-500.0,0.00013699,2]
[335328511,1724116241738,-500.0,0.00013699,2]
[335328512,1724116241752,-500.0,0.00013699,2]
[335328513,1724116241763,-500.0,0.00013699,2]
[335328514,1724116241773,-500.0,0.00013699,2]
[335328515,1724116241784,-500.0,0.00013699,2]
[335328516,1724116241799,-390.88844337,0.00013699,2]
[335328517,1724116241810,-500.0,0.00013699,2]
[335328518,1724116241820,-500.0,0.00013699,2]
[335328519,1724116241830,-500.0,0.00013699,2]
[335328520,1724116241840,-500.0,0.00013699,2]
[335328521,1724116241850,-500.0,0.00013699,2]
[335328522,1724116241860,-500.0,0.00013699,2]
[335328523,1724116241870,-500.0,0.00013699,2]
[335328524,1724116241881,-500.0,0.00013699,2]
[335328525,1724116241893,-500.0,0.00013699,2]
[335328526,1724116241905,-500.0,0.00013699,2]
[335328527,1724116241915,-500.0,0.00013699,2]
[335328528,1724116241927,-500.0,0.00013699,2]
[335328529,1724116241938,-500.0,0.00013699,2]
[335328530,1724116241947,-500.0,0.00013699,2]
[335328531,1724116241957,-500.0,0.00013699,2]
[335328532,1724116241968,-500.0,0.00013699,2]
[335328533,1724116241978,-500.0,0.00013699,2]
[335328534,1724116241987,-500.0,0.00013699,2]
[335328535,1724116241998,-500.0,0.00013699,2]
[335328536,1724116242007,-500.0,0.00013699,2]
[335328537,1724116242016,-500.0,0.00013699,2]
[335328538,1724116242026,-500.0,0.00013699,2]
[335328539,1724116242035,-320.14940048,0.00013699,2]
[335328540,1724116242046,-500.0,0.00013699,2]
[335328541,1724116242055,-500.0,0.00013699,2]
[335328542,1724116242065,-500.0,0.00013699,2]
[335328543,1724116242074,-500.0,0.00013699,2]
[335328544,1724116242083,-500.0,0.00013699,2]
[335328545,1724116242093,-500.0,0.00013699,2]
[335328546,1724116242102,-500.0,0.00013699,2]
[335328547,1724116242111,-500.0,0.00013699,2]
[335328548,1724116242121,-500.0,0.00013699,2]
[335328549,1724116242131,-500.0,0.00013699,2]
[335328550,1724116242140,-500.0,0.00013699,2]
[335328551,1724116242149,-500.0,0.00013699,2]
[335328552,1724116242158,-500.0,0.00013699,2]
[335328553,1724116242168,-500.0,0.00013699,2]
[335328554,1724116242180,-500.0,0.00013699,2]
[335328555,1724116242189,-500.0,0.00013699,2]
[335328556,1724116242199,-500.0,0.00013699,2]
[335328557,1724116242209,-500.0,0.00013699,2]
[335328558,1724116242219,-500.0,0.00013699,2]
[335328559,1724116242230,-500.0,0.00013699,2]
[335328560,1724116242242,-500.0,0.00013699,2]
[335328561,1724116242252,-500.0,0.00013699,2]
[335328562,1724116242263,-500.0,0.00013699,2]
[335328563,1724116242273,-500.0,0.00013699,2]
[335328564,1724116242283,-500.0,0.00013699,2]
[335328565,1724116242299,-1260.8563966,0.00013699,2]
[335328566,1724116242311,-1260.8563966,0.00013699,2]
[335328567,1724116242322,-1260.8563966,0.00013699,2]
[335328568,1724116242332,-1260.8563966,0.00013699,2]
[335328569,1724116242342,-1260.8563966,0.00013699,2]
[335328570,1724116242352,-1260.8563966,0.00013699,2]
[335328571,1724116242361,-1260.8563966,0.00013699,2]
[335328572,1724116242371,-1260.8563966,0.00013699,2]
[335328573,1724116242381,-1260.8563966,0.00013699,2]
[335328574,1724116242391,-194.82337617,0.00013699,2]
[335328575,1724116242403,-151.0,0.00013699,2]
[335328576,1724116242414,-167.200843,0.00013699,2]
[335328577,1724116242425,-151.0,0.00013699,2]
[335328578,1724116242435,-151.0,0.00013699,2]
[335328579,1724116242447,-151.0,0.00013699,2]
[335328580,1724116242459,-151.0,0.00013699,2]
[335328581,1724116242470,-314.294494,0.00013699,2]
[335328582,1724116242479,-314.294494,0.00013699,2]
[335328583,1724116242490,-151.0,0.00013699,2]
[335328584,1724116242500,-151.0,0.00013699,2]
[335328585,1724116242510,-151.0,0.00013699,2]
[335328586,1724116242521,-151.0,0.00013699,2]
[335328587,1724116242532,-151.0,0.00013699,2]
[335328588,1724116242543,-151.0,0.00013699,2]
[335328589,1724116242553,-152.75799,0.00013699,2]
[335328590,1724116242562,-152.75799,0.00013699,2]
[335328591,1724116242574,-163.094173,0.00013699,2]
[335328592,1724116242584,-163.094173,0.00013699,2]
[335328593,1724116242593,-521.839242,0.00013699,2]
[335328594,1724116242603,-521.839242,0.00013699,2]
[335328595,1724116242612,-316.79434,0.00013699,2]
[335328596,1724116242622,-316.79434,0.00013699,2]
[335328597,1724116242631,-151.355207,0.00013699,2]
[335328598,1724116242641,-352.366828,0.00013699,2]
[335328599,1724116242650,-279.554184,0.00013699,2]
[335328600,1724116242660,-352.366828,0.00013699,2]
[335328601,1724116242672,-279.554184,0.00013699,2]
[335328602,1724116242684,-213.125147,0.00013699,2]
[335328603,1724116242694,-213.125147,0.00013699,2]
[335328604,1724116242706,-153.230576,0.00013699,2]
[335328605,1724116242718,-153.230576,0.00013699,2]
[335328606,1724116242728,-151.0,0.00013699,2]
[335328607,1724116242738,-203.728254,0.00013699,2]
[335328608,1724116242749,-249.522073,0.00013699,2]
[335328609,1724116242760,-249.522073,0.00013699,2]
[335328610,1724116242772,-151.0,0.00013699,2]
[335328611,1724116242783,-247.310179,0.00013699,2]
[335328612,1724116242795,-153.235612,0.00013699,2]
[335328613,1724116242806,-153.235612,0.00013699,2]
[335328614,1724116242818,-576.445183,0.00013699,2]
[335328615,1724116242828,-309.39667648,0.00014008,2]
[335328616,1724116242838,-750.0,0.00014247,2]
[335328617,1724116242849,-151.0,0.00014519,2]
[335328618,1724116242859,-162.029148,0.00014519,2]
[335328619,1724116242869,-152.35498,0.00014519,2]
[335328620,1724116242879,-314.294494,0.00014519,2]
[335328621,1724116242889,-314.294494,0.00014519,2]
[335328622,1724116242899,-151.0,0.00014519,2]
[335328623,1724116242909,-151.0,0.00014519,2]
[335328624,1724116242918,-151.0,0.00014519,2]
[335328625,1724116242928,-151.0,0.00014648,2]
[335328626,1724116242937,-151.0,0.00014648,2]
[335328627,1724116242948,-249.174773,0.00014648,2]
[335328629,1724116242958,-151.0,0.00014648,2]
[335328630,1724116242967,-150.112233,0.000149,2]
[335328631,1724116242976,-1557.0,0.00014905,2]
[335328632,1724116242986,-400.0,0.00015042,2]
[335328633,1724116242995,-151.0,0.00015068,2]
[335328634,1724116243005,-151.0,0.00015068,2]
[335328635,1724116243015,-151.0,0.00015068,2]
[335328636,1724116243026,-151.0,0.00015068,2]
[335328637,1724116243038,-216.368292,0.00015068,2]
[335328638,1724116243050,-163.094173,0.00015094,2]
[335328639,1724116243060,-163.094173,0.00015094,2]
[335328640,1724116243071,-521.839242,0.00015094,2]
[335328642,1724116243082,-521.839242,0.00015094,2]
[335328644,1724116243094,-150.112233,0.000151,2]
[335328646,1724116243106,-400.0,0.00015246,2]
[335328660,1724116243290,-7458.54729085,0.00015369,2]
[335328661,1724116243301,-150.112233,0.000154,2]
[335328662,1724116243311,-600.0,0.00015546,2]
[335328663,1724116243321,-150.112233,0.000156,2]
[335328664,1724116243331,-152.75799,0.00015637,2]
[335328666,1724116243344,-152.75799,0.00015637,2]
[335328667,1724116243355,-316.79434,0.00015637,2]
[335328668,1724116243364,-316.79434,0.00015637,2]
[335328669,1724116243375,-352.366828,0.00015637,2]
[335328670,1724116243387,-279.554184,0.00015637,2]
[335328671,1724116243396,-352.366828,0.00015637,2]
[335328672,1724116243406,-279.554184,0.00015637,2]
[335328673,1724116243416,-213.125147,0.00015637,2]
[335328674,1724116243426,-213.125147,0.00015637,2]
[335328675,1724116243436,-153.230576,0.00015637,2]
[335328676,1724116243446,-153.230576,0.00015637,2]
[335328677,1724116243457,-151.0,0.00015637,2]
[335328678,1724116243466,-151.0,0.00015637,2]
[335328679,1724116243476,-249.522073,0.00015637,2]
[335328680,1724116243486,-249.522073,0.00015637,2]
[335328681,1724116243496,-153.235612,0.00015637,2]
[335328682,1724116243506,-153.235612,0.00015637,2]
[335328683,1724116243517,-576.445183,0.00015637,2]
[335328684,1724116243526,-150.0,0.00015637,2]
[335328685,1724116243535,-521.0,0.00015637,2]
[335328686,1724116243549,-1414.0,0.00015637,2]
[335328687,1724116243559,-151.0,0.00015853,2]
[335328688,1724116243568,-5244.78933856,0.00015889,2]
[335328689,1724116243579,-327.432357,0.0001589,2]
[335328690,1724116243590,-150.112233,0.000159,2]
[335328691,1724116243602,-336.82525701,0.00015931,2]
[335328692,1724116243613,-200.0,0.00015973,2]
[335328693,1724116243623,-200.0,0.00015973,2]
[335328694,1724116243633,-23871.56393376,0.00015987,2]
[335328695,1724116243643,-151.0,0.0001599,2]
[335328696,1724116243653,-151.0,0.0001599,2]
[335328697,1724116243663,-151.0,0.0001599,2]
[335328698,1724116243674,-151.0,0.0001599,2]
[335328699,1724116243684,-314.294494,0.0001599,2]
[335328700,1724116243694,-314.294494,0.0001599,2]
[335328701,1724116243704,-151.0,0.0001599,2]
[335328702,1724116243715,-261.466176,0.0001599,2]
[335328703,1724116243725,-100000.0,0.00016,2]
[335328704,1724116243735,-151.0,0.00016,2]
[335328705,1724116243745,-151.0,0.00016,2]
[335328707,1724116243755,-151.0,0.00016,2]
[335328709,1724116243765,-151.0,0.00016,2]
[335328712,1724116243775,-314.294494,0.00016,2]
[335328715,1724116243785,-314.294494,0.00016,2]
[335328718,1724116243795,-151.0,0.00016,2]
[335328719,1724116243804,-151.0,0.00016,2]
[335328720,1724116243814,-152.75799,0.00016,2]
[335328722,1724116243823,-152.75799,0.00016,2]
[335328723,1724116243833,-163.094173,0.00016,2]
[335328725,1724116243843,-163.094173,0.00016,2]